Cogmind - Beta 14 @@@ ROGUE MODE // 2024.10.03 @ 04:58:54 Player: cptwinky Result: Destroyed by AG-51862 with Assembled Focal Cannon Performance ------------- Evolutions (3) 1500 Regions Visited (12) 2400 Robots Destroyed (166) 830 Value Destroyed (6558) 6558 Prototype IDs (36) 720 Alien Tech Used (0) 0 Bonus (2926) 2926 TOTAL SCORE: 14934 Bonus ------- High Alert Combat Kills 904 Follower Combat Kills 216 Entered Garrisons 200 Aligned with FarCom 300 Met Imprinter 300 Destroyed Z-Imprinter 1000 Acquired ECA 300 Friendly Fire -294 Cogmind --------- Core Integrity 0/700 Matter 262/300 Energy 42/100 System Corruption 10% Temperature Cool (6) Movement Core (50) Location -7/Deep Caves Parts ------- > --- POWER (1) -------- (None) > --- PROPULSION (2) --- (None) > --- UTILITY (8) ------ Core Analyzer > --- WEAPON (2) ------- (None) > --- INVENTORY (5) ---- Latent Energy Streamer CR-A16's Pointy Stick Peak State ------------ > --- POWER ------------ Zionite Light DM Reactor > --- PROPULSION ------- Armored Huge Wheel > --- UTILITY ---------- Improved Cooling System High-capacity Storage Unit Advanced Targeting Computer Core Analyzer Zionite Weapon Casing Hardened Heavy Armor Plating Layered Medium Armor Plating > --- WEAPON ----------- Phase Cannon Gauss Cannon > --- INVENTORY -------- Improved Deuterium Engine Improved Deuterium Engine Heavy Deuterium Engine High-capacity Matter Pod Zionite Weapon Casing Zionite Light Carapace Hardened Heavy Armor Plating Improved EM Pulse Cannon Improved EM Pulse Cannon Latent Energy Streamer Phase Cannon Gauss Cannon Rocket Launcher CR-A16's Pointy Stick [Rating: 62] Favorites ----------- Power Improved Deuterium Engine Engine Improved Deuterium Engine Power Core Light Nuclear Core Reactor Zionite Light DM Reactor Propulsion Armored Huge Wheel Treads Light Treads Wheel Armored Huge Wheel Utility High-capacity Storage Unit Device Transmission Jammer Storage High-capacity Storage Unit Processor Advanced Targeting Computer Hackware Hacking Suite Protection Hardened Heavy Armor Plating Weapon Gauss Cannon Energy Gun Improved Medium Laser Energy Cannon Phase Cannon Ballistic Gun Light Assault Rifle Ballistic Cannon Gauss Cannon Launcher Rocket Launcher Impact Weapon Flail Piercing Weapon CR-A16's Pointy Stick Build | -11 -10 -10 -10 -9 -8 -8 -8 -7 -7 -7 -7 -7 ------- Run | Yrd Mat Min Exi Min Mat Gar Mat Fac Low Low Zio Dee Slots Evolved 6 | . . . . . 4 . . 2 . . . . Power . | . . . . . . . . . . . . . Propulsion . | . . . . . . . . . . . . . Utility 6 | . . . . . 4 . . 2 . . . . Weapon . | . . . . . . . . . . . . . Parts Attached 160 | 6 9 3 . 11 37 17 9 35 4 4 . 25 Power 17 | 1 . 1 . 1 3 4 1 4 . . . 2 Engine 13 | 1 . 1 . 1 2 3 1 3 . . . 1 Core 3 | . . . . . 1 1 . 1 . . . . Reactor 1 | . . . . . . . . . . . . 1 Propulsion 9 | 2 . . . 2 3 . 1 . . 1 . . Treads 3 | 2 . . . 1 . . . . . . . . Leg . | . . . . . . . . . . . . . Wheel 6 | . . . . 1 3 . 1 . . 1 . . Hover . | . . . . . . . . . . . . . Flight . | . . . . . . . . . . . . . Utility 65 | 1 2 . . 1 18 5 1 19 . 3 . 15 Device 27 | . 1 . . 1 7 1 . 11 . 2 . 4 Storage 4 | 1 1 . . . 1 . . . . . . 1 Processor 4 | . . . . . 2 . . 2 . . . . Hackware 4 | . . . . . . . . 4 . . . . Protection 26 | . . . . . 8 4 1 2 . 1 . 10 Artifact . | . . . . . . . . . . . . . Weapon 69 | 2 7 2 . 7 13 8 6 12 4 . . 8 Energy Gun 12 | 1 4 . . 3 3 . . . . . . 1 Energy Cannon 21 | . 1 . . 1 3 5 3 1 2 . . 5 Ballistic Gun 2 | 1 . . . . 1 . . . . . . . Ballistic Cannon 10 | . . . . 1 1 . 1 7 . . . . Launcher 14 | . 2 . . 1 2 1 1 4 2 . . 1 Special Weapon . | . . . . . . . . . . . . . Impact Weapon 9 | . . 2 . 1 3 2 1 . . . . . Slashing Weapon . | . . . . . . . . . . . . . Piercing Weapon 1 | . . . . . . . . . . . . 1 Special Melee Weapon . | . . . . . . . . . . . . . Unidentified Prototypes 9 | . 1 . . . 1 . . 1 . . . 6 Corrupted Parts 1 | . . . . . . . . . . . . 1 System Corruption 10 | . . . . . . . . . . . . 10 Parts Lost 24 | . . . . 6 . 2 4 . . 1 . 11 Power 3 | . . . . 1 . 1 . . . . . 1 Propulsion 4 | . . . . 2 . . 1 . . . . 1 Utility 12 | . . . . 1 . 1 2 . . 1 . 7 Weapon 5 | . . . . 2 . . 1 . . . . 2 Highest Loss Streak 6 | . . . . 6 . 1 4 . . 1 . 6 To Critical Strikes 1 | . . . . 1 . . . . . . . . Average Slot Usage (%) 83 | . 97 100 100 87 88 80 75 76 84 83 84 77 Engine 6 | . 14 14 14 13 4 3 9 6 7 7 7 5 Core 1 | . . . . . 4 4 . . . . . . Treads 3 | . 28 28 28 19 2 . . . . . . . Wheel 6 | . . . . 5 10 9 8 7 7 6 7 5 Device 18 | . 11 14 14 6 18 18 18 18 23 23 23 12 Storage 8 | . 14 14 14 14 9 9 9 7 7 7 7 5 Processor 10 | . . . . . 8 9 9 9 15 15 15 14 Hackware 1 | . . . . . . . . 7 . . . . Protection 8 | . . . . . 13 9 10 6 7 6 7 16 Energy Gun 2 | . 21 24 . 12 6 . . . . . . . Energy Cannon 5 | . 2 . . . 7 14 4 . 6 7 7 7 Ballistic Cannon 4 | . . . . 7 2 . 6 7 7 7 7 4 Impact Weapon 1 | . . 3 28 4 1 2 . . . . . . Peak Build Rating 62 | 6 13 13 12 20 41 40 42 56 55 55 55 62 Average Rating 43 | 5 11 12 11 10 35 38 39 49 54 54 55 53 On Entrance 30 | . 6 13 11 12 15 41 36 42 54 55 55 55 Naked Turns . | . . . . . . . . . . . . . Heaviest Build 100 | 11 30 32 30 32 76 70 83 93 93 93 93 100 Greatest Support 40 | 40 40 40 40 40 28 28 28 28 28 28 28 28 Greatest Overweight (x) 18 | . . . . 3 6 2 2 3 3 3 3 18 Average Overweight (x) 2 | . . . . 2 2 2 2 2 3 3 3 3 Largest Inventory Capacity 20 | 8 15 15 15 15 20 20 20 20 20 20 20 20 Average Capacity 18 | 6 14 15 15 15 19 20 20 20 20 20 20 17 Most Carried 20 | 7 15 15 15 15 20 20 20 20 20 20 20 20 Average Carried 18 | 4 12 14 14 12 18 19 19 19 19 19 20 16 Final Capacity 20 | 8 15 15 15 15 20 20 20 20 20 20 20 5 Final Carried 20 | 7 15 14 15 11 20 20 20 18 20 20 20 2 Class Distribution -------------------- 49% | Commander-Mutant 47% | Mutant Dominant Class ---------------- Mutant | -10/Materials Mutant | -10/Mines Mutant | -10/Exiles Mutant | -9/Mines Mutant | -8/Materials Mutant | -8/Garrison Mutant | -8/Materials Mutant | -7/Factory Commander-Mutant | -7/Lower Caves Commander-Mutant | -7/Lower Caves Commander-Mutant | -7/Zion Commander-Mutant | -7/Deep Caves Resources | -11 -10 -10 -10 -9 -8 -8 -8 -7 -7 -7 -7 -7 ----------- Run | Yrd Mat Min Exi Min Mat Gar Mat Fac Low Low Zio Dee Matter Collected 4385 | 247 275 35 28 94 871 335 380 1444 177 121 . 378 Remotely . | . . . . . . . . . . . . . Salvage Created 5464 | 15 446 17 . 34 1465 641 466 1414 253 160 . 553 Parts 286 | 3 16 . . . 86 29 30 91 15 6 . 10 Haulers Intercepted 10 | . 2 . . . 5 . 2 1 . . . . Recyclers Shooed 4 | . . . . . 1 . 1 2 . . . . Parts Field Recycled . | . . . . . . . . . . . . . Retrieved Matter . | . . . . . . . . . . . . . Parts Self-Destructed 27 | . . . . . . . . . 18 8 1 . Prevented 2 | . . . . . . . . . . 2 . . Kills | -11 -10 -10 -10 -9 -8 -8 -8 -7 -7 -7 -7 -7 ------- Run | Yrd Mat Min Exi Min Mat Gar Mat Fac Low Low Zio Dee Combat Hostiles Destroyed 154 | . 8 1 . 15 34 21 13 37 10 5 . 10 Melee 3 | . . . . . 1 1 . . . . . 1 Guns 15 | . 4 1 . . 10 . . . . . . . Cannons 77 | . 2 . . 2 15 8 9 28 3 5 . 5 AOE 54 | . 2 . . 13 8 9 3 9 7 . . 3 Classes Destroyed 21 | 1 4 1 . . 4 . 3 5 . 1 . 2 Worker 1 | . . . . . . . . 1 . . . . Builder 3 | . . . . . . . 1 2 . . . . Tunneler 2 | 1 . . . . . . . 1 . . . . Hauler 10 | . 2 . . . 5 . 2 1 . . . . Recycler 2 | . . . . . . . 1 1 . . . . Mechanic 1 | . . . . . . . . 1 . . . . Operator 3 | . 1 . . . . . . 2 . . . . Watcher 8 | . 1 . . . 2 . 1 4 . . . . Swarmer 40 | . . . . . 12 9 5 3 7 3 . 1 Grunt 54 | . 8 . . . 11 8 3 20 3 . . 1 Brawler 1 | . . . . . . . . 1 . . . . Duelist 4 | . . . . . 1 . . 3 . . . . Protector 1 | . . . . . . . . 1 . . . . Sentry 21 | . . . . . 9 4 3 4 . 1 . . Hunter 2 | . . . . . 1 . 1 . . . . . Programmer 5 | . . . . . . . . 5 . . . . Heavy 1 | . . . . . . . 1 . . . . . Behemoth 1 | . . . . . . . . . . 1 . . Z-Light 5 | . . . . . . . . . . . . 5 Assembled 19 | . . 1 . 15 . . . . . . . 3 Golem 2 | . . . . . . . . . . . . 2 Best Kill Streak 15 | 1 3 1 . 15 9 7 4 9 4 1 . 3 Combat Bots Only 15 | . 3 1 . 15 9 7 4 7 4 1 . 3 Max Kills in Single Turn 4 | 1 1 1 . 3 3 3 2 2 4 1 . 1 Gunslinging . | . . . . . . . . . . . . . Exploded 4 | . 1 . . 3 3 3 2 2 4 . . 1 Melee 1 | . . . . . 1 1 . . . . . 1 Uniques/NPCs Destroyed 1 | . . . . . . . . . . . . 1 Z-Imprinter (-7/Deep Caves) Combat | -11 -10 -10 -10 -9 -8 -8 -8 -7 -7 -7 -7 -7 -------- Run | Yrd Mat Min Exi Min Mat Gar Mat Fac Low Low Zio Dee Hostile Shots Fired 584 | . 19 1 . 37 116 82 55 124 23 52 . 75 Missed 173 | . 6 . . 12 28 27 14 52 6 17 . 11 Damage Taken 7886 | . 154 10 . 636 1022 771 756 1194 253 459 . 2631 Core 1103 | . 34 . . 99 154 33 37 125 13 33 . 575 Absorbed by Shields 534 | . . . . . 270 44 . 60 56 80 . 24 Redirected to Shielding 341 | . . . . . . . . . . . . 341 Regen/Repaired (Parts) 1153 | . . . . . 360 . 292 501 . . . . Core Remaining (%) 68 | 100 . . . 46 . . 59 . . . . . Volleys Fired 465 | 2 21 1 . 19 120 55 48 138 20 11 2 28 Largest 2 | 2 2 2 . 2 2 2 2 2 2 2 1 2 Hottest 143 | 70 112 112 . 91 136 136 143 133 133 133 85 133 Shots Fired 684 | 4 39 2 . 24 222 95 58 147 27 22 2 42 Gun 121 | 4 27 2 . 5 83 . . . . . . . Cannon 511 | . 9 . . 5 134 87 56 140 23 22 2 33 Launcher 52 | . 3 . . 14 5 8 2 7 4 . . 9 Special . | . . . . . . . . . . . . . Kinetic 264 | 2 13 . . 5 37 . 36 139 7 11 . 14 Thermal 363 | 2 23 2 . 5 180 87 20 1 16 11 2 14 Explosive 50 | . 1 . . 14 5 8 2 7 4 . . 9 Electromagnetic 7 | . 2 . . . . . . . . . . 5 Robot Hit Streak 15 | 3 14 6 . 2 15 11 10 13 5 6 . 9 Robot Miss Streak 5 | . 2 . . 3 4 2 5 5 1 2 . 4 Penetration Max 1 | . . . . . . . 1 1 . . . 1 Secondary Targets . | . . . . . . . . . . . . . Shots Hit Robots 419 | 3 26 2 . 7 144 54 43 87 11 14 . 28 Core Hits 269 | 1 14 2 . 32 60 29 21 58 13 9 . 30 Critical Kills 3 | . 1 . . . . 2 . . . . . . Critical Parts Destroyed 1 | . . . . . 1 . . . . . . . Critical Strikes 31 | 1 3 . . . 6 2 3 14 . . . 2 Burn 7 | 1 2 . . . 4 . . . . . . . Meltdown 2 | . . . . . . 2 . . . . . . Destroy 1 | . 1 . . . . . . . . . . . Blast 18 | . . . . . 1 . 3 14 . . . . Smash 1 | . . . . . 1 . . . . . . . Impale 2 | . . . . . . . . . . . . 2 Melee Attacks 47 | . . 9 . 2 13 13 4 . . . . 6 Impact 41 | . . 9 . 2 13 13 4 . . . . . Slashing . | . . . . . . . . . . . . . Piercing 6 | . . . . . . . . . . . . 6 Sneak Attacks 2 | . . . . . 2 . . . . . . . Combat Hostiles 1 | . . . . . 1 . . . . . . . Follow-up Attacks . | . . . . . . . . . . . . . Damage Inflicted 17287 | 35 508 43 . 888 3597 1755 2192 5704 737 436 . 1392 Guns 1071 | 35 198 35 . 17 786 . . . . . . . Cannons 11276 | . 121 . . 71 2131 1123 1938 4528 309 436 . 619 Explosions 4397 | . 152 . . 800 469 546 254 1176 428 . . 572 Melee 498 | . . . . . 211 86 . . . . . 201 Ramming 45 | . 37 8 . . . . . . . . . . Kinetic 7430 | 9 52 . . 71 514 . 1635 4528 115 273 . 233 Thermal 4944 | 26 267 35 . 17 2403 1123 303 135 194 163 . 278 Explosive 4145 | . 42 . . 800 469 546 247 1041 428 . . 572 Electromagnetic 225 | . 110 . . . . . 7 . . . . 108 Impact 297 | . . . . . 211 86 . . . . . . Slashing . | . . . . . . . . . . . . . Piercing 201 | . . . . . . . . . . . . 201 Highest Corruption 10 | . 1 1 1 4 . . . 4 . . . 10 Average Corruption 2 | . 1 1 1 2 . . . 2 . . . 10 Corruption Purged 6 | . . . . . . . . 6 . . . . Corruption Blocked . | . . . . . . . . . . . . . Effects 24 | . 1 4 2 2 . . . 5 . . . 10 Message Errors 5 | . . 1 . . . . . . . . . 4 Matter Fused 7 | . 1 2 . 1 . . . 1 . . . 2 Heat Flow Errors 3 | . . . . . . . . 2 . . . 1 Energy Discharges 2 | . . 1 . . . . . . . . . 1 Parts Rejected 1 | . . . . . . . . . . . . 1 Data Loss (minor) 5 | . . . 1 1 . . . 2 . . . 1 Alerts 1 | . . . 1 . . . . . . . . . Overload Shots . | . . . . . . . . . . . . . Overflow Damage 671 | . . . . 71 79 16 120 351 11 . . 23 Projectiles 508 | . . . . 14 37 . 115 320 11 . . 11 Explosions 110 | . . . . 57 . 5 5 31 . . . 12 Melee 53 | . . . . . 42 11 . . . . . . Knockbacks 45 | . . . . 1 6 . 4 31 1 . . 2 Impact 1 | . . . . . 1 . . . . . . . Kinetic 42 | . . . . 1 5 . 4 29 1 . . 2 Secondary 2 | . . . . . . . . 2 . . . . Self-Inflicted Damage 315 | . . . . 181 12 65 . . 57 . . . Shots 12 | . . . . 6 1 3 . . 2 . . . Rammed 4 | . 3 1 . . . . . . . . . . Targets Rammed 6 | . 5 1 . . . . . . . . . . Kicked . | . . . . . . . . . . . . . Crushed 2 | . 2 . . . . . . . . . . . Highest Temperature 306 | 40 152 21 . 125 306 298 78 247 25 21 . 69 Average Temperature 65 | 20 51 14 . 66 83 90 14 52 17 16 . 18 Received Heat Transfer 1814 | . 87 . . 20 346 422 45 326 41 79 . 448 Effects 3 | . . . . . . 3 . . . . . . Energy Bleed 1 | . . . . . . 1 . . . . . . Interference 2 | . . . . . . 2 . . . . . . Siege Activations . | . . . . . . . . . . . . . Robots Corrupted 1 | . . . . . . . . . . . . 1 Combat Hostiles 1 | . . . . . . . . . . . . 1 Parts Fried 3 | . . . . . 2 . . . . . . 1 Impact Corruptions 3 | . . . . . 2 1 . . . . . . Robots Melted 4 | . . . . . . 3 1 . . . . . Combat Hostiles 4 | . . . . . . 3 1 . . . . . Parts Melted 20 | . 1 . . . 10 6 2 . 1 . . . Heat Transferred 8965 | 148 740 74 . 37 4736 1850 518 150 222 185 . 305 Parts Sabotaged . | . . . . . . . . . . . . . Parts Stolen . | . . . . . . . . . . . . . Parts Stripped . | . . . . . . . . . . . . . Power Chain Reactions . | . . . . . . . . . . . . . Alert | -11 -10 -10 -10 -9 -8 -8 -8 -7 -7 -7 -7 -7 ------- Run | Yrd Mat Min Exi Min Mat Gar Mat Fac Low Low Zio Dee Peak Influence 1430 | 5 202 78 . 19 579 1203 591 1430 . . . . Initial 586 | . 3 78 . . . 345 586 191 . . . . Average 475 | . 102 58 . 1 207 816 378 750 . . . . Maximum Alert Level 4 | . 1 . . . 2 4 2 4 . . . . Low Security (%) 31 | 100 77 100 . 100 57 . . 5 . . . . Level 1 24 | . 22 . . . 23 4 59 29 . . . . Level 2 18 | . . . . . 19 31 40 15 . . . . Level 3 12 | . . . . . . 55 . 13 . . . . Level 4 14 | . . . . . . 8 . 36 . . . . Level 5 . | . . . . . . . . . . . . . High Security . | . . . . . . . . . . . . . Max Security . | . . . . . . . . . . . . . Squads Dispatched 26 | . 3 . . . 7 . 3 13 . . . . Investigation 9 | . 2 . . . 3 . 1 3 . . . . Extermination 4 | . . . . . . . . 4 . . . . Reinforcement 5 | . 1 . . . . . 1 3 . . . . Assault 4 | . . . . . . . 1 3 . . . . Garrison 4 | . . . . . 4 . . . . . . . Intercept . | . . . . . . . . . . . . . Searches Triggered . | . . . . . . . . . . . . . Construction Impeded 1 | . . . . . . . . 1 . . . . Haulers Reinforced . | . . . . . . . . . . . . . Active Scanning Responses . | . . . . . . . . . . . . . Cargo Convoy Interrupts . | . . . . . . . . . . . . . Stealth | -11 -10 -10 -10 -9 -8 -8 -8 -7 -7 -7 -7 -7 --------- Run | Yrd Mat Min Exi Min Mat Gar Mat Fac Low Low Zio Dee Distress Signals 11 | . . . . . 8 . . 3 . . . . Communications Jammed 43 | . . . . . 4 . 6 33 . . . . Distress Signals 36 | . . . . . 4 . . 32 . . . . Times Spotted 218 | . 15 1 . 15 54 20 16 62 10 7 . 18 Peak Tracking Total 9 | . 5 1 . 9 4 5 4 6 4 3 . 5 Tactical Retreats 11 | . . . . . 2 1 1 4 . 3 . . Traps | -11 -10 -10 -10 -9 -8 -8 -8 -7 -7 -7 -7 -7 ------- Run | Yrd Mat Min Exi Min Mat Gar Mat Fac Low Low Zio Dee Traps Triggered 26 | . 1 . . . 3 10 2 10 . . . . Indirectly . | . . . . . . . . . . . . . Trap Hack Attempts . | . . . . . . . . . . . . . Triggered . | . . . . . . . . . . . . . Disarmed . | . . . . . . . . . . . . . Reprogrammed . | . . . . . . . . . . . . . Reused 3 | . . . . . . . . . . . . 3 Traps Extracted 5 | . . . . . . . . . . 4 . 1 Installed 6 | . . . . . . . . . . . . 6 Triggered 1 | . . . . . . . . . . 1 . . Most Traps Carried 5 | . . . . . . . . . 1 5 5 5 Machines | -11 -10 -10 -10 -9 -8 -8 -8 -7 -7 -7 -7 -7 ---------- Run | Yrd Mat Min Exi Min Mat Gar Mat Fac Low Low Zio Dee Machines Disabled 20 | . . . . . 2 6 1 11 . . . . Max in Single Turn 4 | . . . . . 2 1 1 4 . . . . Garrison Access 2 | . . . . . . . . 2 . . . . Garrison Relay 3 | . . . . . . 3 . . . . . . Machines Repaired . | . . . . . . . . . . . . . Machines Dismantled . | . . . . . . . . . . . . . Machines Sabotaged . | . . . . . . . . . . . . . Overloaded Fab Kills . | . . . . . . . . . . . . . Hacking | -11 -10 -10 -10 -9 -8 -8 -8 -7 -7 -7 -7 -7 --------- Run | Yrd Mat Min Exi Min Mat Gar Mat Fac Low Low Zio Dee Machines Accessed 51 | . 6 . 2 . 11 4 7 19 1 1 . . Terminals 30 | . 5 . . . 7 4 6 8 . . . . Fabricators 3 | . . . . . . . . 3 . . . . Repair Stations 5 | . . . . . 1 . 1 3 . . . . Recycling Units 3 | . 1 . . . 1 . . 1 . . . . Scanalyzers 2 | . . . . . 1 . . 1 . . . . Garrison Access 4 | . . . . . 1 . . 3 . . . . Total Hacks 132 | . 23 . 2 . 30 9 18 48 1 1 . . Successful 60 | . 8 . 2 . 17 2 7 22 1 1 . . Failed 70 | . 14 . . . 12 7 11 26 . . . . Catastrophic 11 | . 2 . . . 1 2 1 5 . . . . Database Lockouts 2 | . 1 . . . 1 . . . . . . . Manual 57 | . 12 . 1 . 15 4 11 10 . . 4 . Terminals 87 | . 20 . . . 21 9 15 22 . . . . Fabricators 7 | . . . . . . . . 7 . . . . Repair Stations 15 | . . . . . 4 . 3 8 . . . . Recycling Units 8 | . 3 . . . 2 . . 3 . . . . Scanalyzers 4 | . . . . . 1 . . 3 . . . . Garrison Access 7 | . . . . . 2 . . 5 . . . . Terminal Hacks 28 | . 6 . 2 . 7 1 4 6 1 1 . . Record 1 | . . . 1 . . . . . . . . . Part Schematic 1 | . 1 . . . . . . . . . . . Robot Schematic 1 | . . . . . . . . 1 . . . . Robot Analysis 6 | . 4 . . . 2 . . . . . . . Prototype ID Bank 1 | . . . . . 1 . . . . . . . Open Door 2 | . . . . . . . . . 1 1 . . Branch Access Points 1 | . . . . . 1 . . . . . . . Terminal Index 1 | . . . . . . . . 1 . . . . Unreport Threat 4 | . . . . . 2 . 2 . . . . . Locate Traps 3 | . 1 . . . . . 1 1 . . . . Recall Investigation 1 | . . . . . . . . 1 . . . . Registered Components 1 | . . . . . . . . 1 . . . . Zone Layout 3 | . . . . . 1 . 1 1 . . . . Garrison Registry 1 | . . . . . . 1 . . . . . . Derelict Proto ID Bank 1 | . . . 1 . . . . . . . . . Fabricator Hacks 6 | . . . . . . . . 6 . . . . Network Status 1 | . . . . . . . . 1 . . . . Load Schematic 2 | . . . . . . . . 2 . . . . Build 3 | . . . . . . . . 3 . . . . Repair Station Hacks 9 | . . . . . 4 . 2 3 . . . . Scan Component 5 | . . . . . 2 . 1 2 . . . . Repair 4 | . . . . . 2 . 1 1 . . . . Recycling Unit Hacks 3 | . 1 . . . 1 . . 1 . . . . Retrieve Components 3 | . 1 . . . 1 . . 1 . . . . Scanalyzer 3 | . . . . . 1 . . 2 . . . . Insert Component 2 | . . . . . 1 . . 1 . . . . Analyze 1 | . . . . . . . . 1 . . . . Garrison Access Hacks 2 | . . . . . 1 . . 1 . . . . Unlock Access 1 | . . . . . 1 . . . . . . . Seal Access 1 | . . . . . . . . 1 . . . . Unauthorized Hacks 9 | . 1 . . . 3 1 1 3 . . . . Terminals 5 | . . . . . 1 1 1 2 . . . . Assimilate 1 | . . . . . . . . 1 . . . . Botnet 3 | . . . . . 1 . 1 1 . . . . Override 1 | . . . . . . 1 . . . . . . Fabricators 1 | . . . . . . . . 1 . . . . Liberate 1 | . . . . . . . . 1 . . . . Repair Stations . | . . . . . . . . . . . . . Recycling Units 2 | . 1 . . . 1 . . . . . . . Reject 2 | . 1 . . . 1 . . . . . . . Scanalyzers . | . . . . . . . . . . . . . Garrison Access 1 | . . . . . 1 . . . . . . . Reprogram 1 | . . . . . 1 . . . . . . . Data Cores Recovered . | . . . . . . . . . . . . . Used . | . . . . . . . . . . . . . Hacking Detections 41 | . 5 . . . 9 4 7 16 . . . . Full Trace Events 5 | . 1 . . . . . 1 3 . . . . Feedback Events 1 | . 1 . . . . . . . . . . . Corruption 1 | . 1 . . . . . . . . . . . Feedback Blocked . | . . . . . . . . . . . . . Robot Schematics Acquired 5 | . . . . . . . . 1 . . 4 . Robots Built 10 | . . . . . . . . 10 . . . . Authchips 3 | . . . . . . . . 3 . . . . Time 120 | . . . . . . . . 120 . . . . Total Robot Build Rating 34 | . . . . . . . . 34 . . . . Part Schematics Acquired 16 | . 1 . . . . . . 1 . . 14 . Parts Built . | . . . . . . . . . . . . . Authchips . | . . . . . . . . . . . . . Time . | . . . . . . . . . . . . . Total Part Build Rating . | . . . . . . . . . . . . . Parts Repaired 4 | . . . . . 2 . 1 1 . . . . Time 136 | . . . . . 76 . 38 22 . . . . Parts Recycled . | . . . . . . . . . . . . . Recycled Matter . | . . . . . . . . . . . . . Retrieved Matter . | . . . . . . . . . . . . . Retrieved Components 13 | . 2 . . . 10 . . 1 . . . . Parts Scanalyzed 1 | . . . . . . . . 1 . . . . Part Schematics Acquired 1 | . . . . . . . . 1 . . . . Parts Damaged . | . . . . . . . . . . . . . Bothacking | -11 -10 -10 -10 -9 -8 -8 -8 -7 -7 -7 -7 -7 ------------ Run | Yrd Mat Min Exi Min Mat Gar Mat Fac Low Low Zio Dee Used RIF Installer . | . . . . . . . . . . . . . Robots Hacked . | . . . . . . . . . . . . . Non-combat . | . . . . . . . . . . . . . Combat . | . . . . . . . . . . . . . Robot Hacks Applied . | . . . . . . . . . . . . . Relay Couplers Released 15 | . . . . . . 13 . 2 . . . . Machine Destruction 15 | . . . . . . 13 . 2 . . . . Fabnet Peak Effective % . | . . . . . . . . . . . . . Robots Rewired . | . . . . . . . . . . . . . Allies Hacked . | . . . . . . . . . . . . . Hacks Repelled . | . . . . . . . . . . . . . Allies | -11 -10 -10 -10 -9 -8 -8 -8 -7 -7 -7 -7 -7 -------- Run | Yrd Mat Min Exi Min Mat Gar Mat Fac Low Low Zio Dee Total Allies 20 | . . 5 . . 1 . . 14 . . . . Largest Group 11 | . . 5 4 2 . 1 . 11 11 11 11 11 Highest-Rated Group 154 | . . 86 78 32 . 15 . 154 154 154 154 154 Highest-Rated Ally 31 | . . 31 31 16 . 15 . 16 16 16 16 16 Total Orders 27 | . . . . . . . . 3 2 6 2 14 STAY 12 | . . . . . . . . 1 1 2 1 7 FOLLOW 15 | . . . . . . . . 2 1 4 1 7 Ally Attacks 162 | . . 1 . 6 . 1 . 54 . . . 100 Total Damage 1527 | . . 20 . 16 . 29 . 625 . . . 837 Kills 15 | . . 1 . . . . . 7 . . . 7 Allies Corrupted . | . . . . . . . . . . . . . Allies Melted . | . . . . . . . . . . . . . Intel | -11 -10 -10 -10 -9 -8 -8 -8 -7 -7 -7 -7 -7 ------- Run | Yrd Mat Min Exi Min Mat Gar Mat Fac Low Low Zio Dee Robot Analysis Total 6 | . 4 . . . 2 . . . . . . . Derelict Logs Recovered 6 | . . 1 . . . . . . 2 2 1 . Drone Launches . | . . . . . . . . . . . . . Drone Recoveries . | . . . . . . . . . . . . . Exploration | -11 -10 -10 -10 -9 -8 -8 -8 -7 -7 -7 -7 -7 ------------- Run | Yrd Mat Min Exi Min Mat Gar Mat Fac Low Low Zio Dee Turns Passed 16750 | 117 752 528 432 177 2525 1296 847 3471 1418 1502 1356 2329 Spaces Moved 9642 | 62 398 298 269 84 1338 701 458 1970 910 923 922 1309 Core 66 | 3 . . . . . . . . . . . 63 Treads 1052 | 59 398 298 269 28 . . . . . . . . Legs . | . . . . . . . . . . . . . Wheels 8524 | . . . . 56 1338 701 458 1970 910 923 922 1246 Hover . | . . . . . . . . . . . . . Flight . | . . . . . . . . . . . . . Fastest Speed 50 | 50 160 160 160 125 125 130 130 130 145 145 145 145 Average Speed 143 | 154 160 160 160 136 130 130 130 140 145 145 145 156 Slowest Speed 950 | 160 160 160 160 160 170 130 130 145 145 145 145 950 Overloaded Moves . | . . . . . . . . . . . . . Propulsion Burnouts . | . . . . . . . . . . . . . Robots Hopped . | . . . . . . . . . . . . . Cave-ins Triggered . | . . . . . . . . . . . . . Exploration Rate (%) 60 | 5 80 49 69 10 88 74 36 56 74 80 86 77 Regions Visited 12 Branch Regions 7 Pre-discovered Areas 3 | . . . 1 . . . . . 2 . . . Known Exits Taken 5 | . . . . . 1 . 1 1 1 . 1 . Unknown Exits Taken 6 | 1 1 1 1 1 . . . . . 1 . . Scrap Searched 10 | . . 3 . . . . . . 3 3 1 . Spaces Dug 94 | . . . . 2 28 17 7 10 29 . 1 . Terrain Destroyed 377 | . 8 . . 57 39 31 37 108 45 5 1 46 Melee 16 | . . . . 2 7 4 3 . . . . . Projectile 92 | . . . . 1 1 1 17 48 12 5 1 6 AOE 269 | . 8 . . 54 31 26 17 60 33 . . 40 Terrain Rammed . | . . . . . . . . . . . . . Walls Destroyed . | . . . . . . . . . . . . . Machines Disabled . | . . . . . . . . . . . . . Actions | -11 -10 -10 -10 -9 -8 -8 -8 -7 -7 -7 -7 -7 --------- Run | Yrd Mat Min Exi Min Mat Gar Mat Fac Low Low Zio Dee Total 11752 | 77 473 334 271 116 1882 970 628 2480 979 1065 940 1537 Wait 1130 | 1 23 19 . . 309 100 91 278 44 122 15 128 Move 9630 | 61 397 297 268 83 1338 699 457 1969 909 922 921 1309 Hop . | . . . . . . . . . . . . . Pick Up 100 | 7 10 1 2 1 30 8 7 21 2 3 1 7 Fast Attach 48 | 6 4 . . 1 13 2 1 11 . 1 . 9 Attach 31 | . . . . 5 3 3 3 10 . 1 . 6 Detach 22 | . 3 . . . 1 . 2 4 . . . 12 Swap 81 | . 5 3 . 5 21 12 5 14 4 2 . 10 Drop 105 | . 5 3 1 . 34 10 5 27 . 3 1 16 Fire 465 | 2 21 1 . 19 120 55 48 138 20 11 2 28 Melee 47 | . . 9 . 2 13 13 4 . . . . 6 Ram . | . . . . . . . . . . . . . Kick . | . . . . . . . . . . . . . Crush 6 | . 5 1 . . . . . . . . . . Escape Stasis 76 | . . . . . . 68 . 8 . . . . Rewire 5 | . . . . . . . 5 . . . . . Trap 6 | . . . . . . . . . . . . 6 Miscellaneous . | . . . . . . . . . . . . . Route ------- -11/Scrapyard -10/Materials (discovered 3 exits: [*Mat x2] / [*Min]) -10/Mines -10/Exiles -9/Mines -8/Materials (discovered 4 exits: *Fac x3 / Gar) -8/Garrison (discovered 3 exits: *Mat x3) -8/Materials -7/Factory (discovered 5 exits: [*Fac x3] / *Low x2) -7/Lower Caves -7/Lower Caves (discovered 2 exits: [*Fac] / *Zio) -7/Zion (discovered 2 exits: *Dee / [*Pro]) -7/Deep Caves (discovered 1 exit: [*Pro]) History --------- Turn | Location | Event 11 | -11/Scrapyard | Discovered new exit (range 15) 118 | -11/Scrapyard | Entered Materials 330 | -10/Materials | Build established: Mutant 526 | -10/Materials | Discovered new exit (range 5) 740 | -10/Materials | Discovered new exit (range 12) 802 | -10/Materials | Central database locked down 809 | -10/Materials | Discovered new exit (range 15) 870 | -10/Materials | Entered Mines 874 | -10/Mines | Found DCF Scrap (15 items) 950 | -10/Mines | Deemed a non-threat by the Exiles lab entrance 950 | -10/Mines | Discovered new exit (range 5) 1086 | -10/Mines | Assisted by bots powering up and referring to "LRC-V3" 1174 | -10/Mines | Learned location of 1 exit from Materials 1290 | -10/Mines | Excavation squad dispatched 1290 | -10/Mines | A large section of the Mines collapsed 1398 | -10/Mines | Entered Exiles 1398 | -10/Exiles | Accompanied by 4 allies 1428 | -10/Exiles | Led the pair of lost Derelicts to a safe place 1438 | -10/Exiles | Met 8R-AWN 1463 | -10/Exiles | Met EX-HEX 1543 | -10/Exiles | Met EX-DEC 1571 | -10/Exiles | Learned location of Zion (-7) 1598 | -10/Exiles | Met EX-BIN 1620 | -10/Exiles | Aligned with FarCom system 1622 | -10/Exiles | Given EX-Vault access code 1660 | -10/Exiles | Opened EX-Vault 1672 | -10/Exiles | Found Latent Energy Streamer 1705 | -10/Exiles | Warned to stay clear of 0b10 Research branches 1812 | -10/Exiles | Discovered new exit (range 14) 1830 | -10/Exiles | Left Exiles lab with Latent Energy Streamer 1830 | -10/Exiles | Entered Mines 1830 | -9/Mines | Accompanied by 2 allies 1831 | -9/Mines | Assembled infested the area 1836 | -9/Mines | Assisted by a Guerilla fighting off Assembled 1926 | -9/Mines | Core integrity fell below 50% 1942 | -9/Mines | Discovered new exit (range 13) 1950 | -9/Mines | Destroyed 15 combat bots 1958 | -9/Mines | Lost 6 parts (1p2n1u2w) 2007 | -9/Mines | Entered Materials 2007 | -8/Materials | Evolved 4 slots: Utility x4 2008 | -8/Materials | Identified exit to Factory 2625 | -8/Materials | Discovered exit to Factory (range 20) 3400 | -8/Materials | Central database locked down 3611 | -8/Materials | Repaired Hrd. Medium Armor Plating 3862 | -8/Materials | Discovered exit to Factory (range 5) 4093 | -8/Materials | Garrison activated, responded to threat 4193 | -8/Materials | Destroyed 9 combat bots 4344 | -8/Materials | Repaired Hvy. Armor Plating 4509 | -8/Materials | Identified exit to Garrison 4532 | -8/Materials | Entered Garrison 4532 | -8/Garrison | Accompanied by 1 ally 4565 | -8/Garrison | Triggered checkpoint 4596 | -8/Garrison | Garrison Relay disabled 4689 | -8/Garrison | Triggered checkpoint 4816 | -8/Garrison | Triggered checkpoint 4912 | -8/Garrison | Garrison Relay disabled 4930 | -8/Garrison | Discovered new exit (range 13) 4930 | -8/Garrison | Discovered new exit (range 42) 4930 | -8/Garrison | Discovered new exit (range 71) 5050 | -8/Garrison | Destroyed 7 combat bots 5096 | -8/Garrison | Triggered checkpoint 5145 | -8/Garrison | Garrison Relay disabled 5200 | -8/Garrison | Triggered checkpoint 5602 | -8/Garrison | Attempted to access garrison exit controls, blocked by remote lockdown 5643 | -8/Garrison | Identified exit to Materials 5828 | -8/Garrison | Entered Materials 6049 | -8/Materials | Lost 4 parts (1n2u1w) 6271 | -8/Materials | Repaired Hvy. Armor Plating 6628 | -8/Materials | First assault squad dispatched 6653 | -8/Materials | Discovered exit to Factory (range 5) 6675 | -8/Materials | Entered Factory 6675 | -7/Factory | Evolved 2 slots: Utility x2 6847 | -7/Factory | Discovered new exit (range 16) 7049 | -7/Factory | Discovered new exit (range 15) 7749 | -7/Factory | Identified exit to Lower Caves 8474 | -7/Factory | Discovered exit to Lower Caves (range 16) 8503 | -7/Factory | Fabricated S-27 Virus (x4) 8670 | -7/Factory | Repaired Hrd. Heavy Armor Plating 8675 | -7/Factory | First assault squad dispatched 8763 | -7/Factory | Discovered new exit (range 9) 8797 | -7/Factory | Build established: Commander-Mutant 8886 | -7/Factory | Destroyed 7 combat bots 9626 | -7/Factory | Discovered new exit (range 8) 10070 | -7/Factory | Fabricated G-47 Trooper (x3) 10109 | -7/Factory | Fabricated G-47 Trooper? 10146 | -7/Factory | Entered Lower Caves 10146 | -7/Lower Caves | Accompanied by 11 allies 10152 | -7/Lower Caves | Met a Warlord Commander 10153 | -7/Lower Caves | Learned location of Warlord (-5) 10154 | -7/Lower Caves | Warlord Commander delivered Encrypted Comm Array 10154 | -7/Lower Caves | Found Encrypted Comm Array 10519 | -7/Lower Caves | Identified exit to Lower Caves 11564 | -7/Lower Caves | Entered another Lower Caves area 11564 | -7/Lower Caves | Accompanied by 11 allies 11676 | -7/Lower Caves | Discovered new exit (range 3) 11916 | -7/Lower Caves | Spotted B-75 Beast 11931 | -7/Lower Caves | Destroyed B-75 Beast 12004 | -7/Lower Caves | Attracted the attention of an 0b10 checkpoint 12161 | -7/Lower Caves | Discovered new exit (range 15) 12199 | -7/Lower Caves | Learned location of 1 exit from Factory 12408 | -7/Lower Caves | Learned 4 Factory zone layouts 13066 | -7/Lower Caves | Entered Zion 13066 | -7/Zion | Accompanied by 11 allies 13133 | -7/Zion | Discovered new exit (range 13) 13343 | -7/Zion | Learned Factory emergency access door positions 13434 | -7/Zion | Identified exit to Deep Caves 13456 | -7/Zion | Acquired unknown access codes intercepted by a Zionite 13682 | -7/Zion | Rebuked by Imprinter 13946 | -7/Zion | Found CR-A16's Pointy Stick 14369 | -7/Zion | Opened final containment barrier to the Deep Caves 14395 | -7/Zion | Saw the warning signs outside the Deep Caves entrance 14422 | -7/Zion | Entered Deep Caves 14422 | -7/Deep Caves | Accompanied by 11 allies 15024 | -7/Deep Caves | Attacked by Z-Imprinter 15036 | -7/Deep Caves | Allies destroyed Z-Imprinter 15076 | -7/Deep Caves | Lost 6 allies 15096 | -7/Deep Caves | Found Prototype Protection 15096 | -7/Deep Caves | Identified Zio. Weapon Casing 15486 | -7/Deep Caves | Discovered new exit (range 7) 15832 | -7/Deep Caves | Found Zio. Weapon Casing 15885 | -7/Deep Caves | Found Prototype Protection 15893 | -7/Deep Caves | Found Zio. Weapon Casing 16387 | -7/Deep Caves | Spotted AG-11764 16407 | -7/Deep Caves | Core integrity fell below 50% 16424 | -7/Deep Caves | Core integrity fell below 20% 16433 | -7/Deep Caves | Identified Zio. Heavy Carapace 16454 | -7/Deep Caves | Lost 5 parts (1p1n2u1w) 16460 | -7/Deep Caves | Destroyed AG-11764 16488 | -7/Deep Caves | System corruption reached 10% 16683 | -7/Deep Caves | Spotted AG-51862 16751 | -7/Deep Caves | Destroyed by AG-51862 with Assembled Focal Cannon Last Messages --------------- 16538_ System corrupted: Heat flow error (+103). 16539_ Acquired Latent Energy Streamer. 16562_ :Y%KZBC7YU8AMT:PC0%A:KN613SW 16587_ System corrupted: Component data lost. 16607_ :D,P#6CE4FXCZAA05ULCUCK7JYW5 EIP=ZSO 16642_ HO6=6NNB